bitfinex-derivatives/quotes_ETHF0:USTF0_20250224
["timestamp","ask_amount","ask_price","bid_price","bid_amount"]
[1740425682054,6.75528,2647.7,2647.6,0.00566915]
[1740425682252,6.0,2647.7,2646.6,0.5436]
[1740425682459,3.2078,2647.2,2646.6,0.5436]
[1740425682954,3.2078,2646.9,2646.2,0.5652]
[1740425683155,0.75568,2646.3,2646.2,0.5652]
[1740425683460,0.75569,2646.3,2645.7,47.4348]
[1740425683659,0.75569,2646.3,2646.0,0.76141915]
[1740425684154,0.00566915,2646.5,2646.0,0.76140915]
[1740425684357,0.75566,2646.4,2646.1,0.75572]
[1740425684553,0.75568,2646.3,2646.0,0.76140915]
[1740425684755,0.00566915,2646.5,2646.0,0.00566915]
[1740425684955,0.00566915,2646.5,2646.4,0.75565]
[1740425685157,0.00566915,2646.5,2646.4,3.96345]
[1740425685454,0.00566915,2646.5,2646.4,0.75565]
[1740425685862,0.00566915,2646.5,2646.4,41.55565]
[1740425686357,0.00566915,2646.5,2646.4,40.8]
[1740425686558,0.76129915,2646.5,2646.2,1.3339]
[1740425686754,0.76129915,2646.5,2646.0,0.76142915]
[1740425686755,0.75572,2646.2,2646.0,0.76142915]
[1740425686959,3.2078,2646.3,2646.0,0.00566915]
[1740425687151,0.75573,2646.1,2646.0,0.00566915]
[1740425687960,0.75572,2646.2,2646.0,0.00566915]
[1740425688263,3.2078,2646.3,2646.0,0.00566915]
[1740425688264,0.75573,2646.1,2646.0,0.00566915]
[1740425688765,3.2078,2646.3,2646.0,0.00566915]
[1740425689258,0.00566915,2646.5,2646.4,0.75565]
[1740425689456,9.15e-06,2646.5,2646.4,0.75565]
[1740425689851,9.15e-06,2646.5,2646.4,6.75565]
[1740425690458,9.15e-06,2646.5,2646.4,0.75565]
[1740425691761,9.15e-06,2646.5,2646.3,0.75566]
[1740425691965,9.15e-06,2646.5,2646.2,0.5824]
[1740425692167,9.15e-06,2646.5,2646.4,0.75565]
[1740425692366,0.75568,2646.3,2646.2,1.33809]
[1740425693266,3.20780915,2646.5,2646.0,3.43066915]
[1740425693464,3.20780915,2646.5,2646.0,44.23066915]
[1740425693666,0.75569,2646.3,2646.2,0.7557]
[1740425693865,3.20780915,2646.5,2646.2,0.7557]
[1740425694063,3.20780915,2646.5,2646.0,0.00566915]
[1740425694064,0.75565915,2646.5,2646.3,0.75566]
[1740425694264,9.15e-06,2646.5,2646.0,0.00566915]
[1740425694460,0.75568,2646.3,2646.2,0.7557]
[1740425694665,0.75571,2646.2,2646.1,0.75572]
[1740425694970,9.15e-06,2646.5,2646.0,0.00566915]
[1740425695567,0.75573,2646.1,2646.0,0.00566915]
[1740425695867,0.75569,2646.3,2646.2,0.75571]
[1740425696171,3.20780915,2646.5,2646.3,0.75566]
[1740425696372,3.20780915,2646.5,2646.0,0.00566915]
[1740425696671,0.75572,2646.2,2646.1,0.75573]
[1740425696972,3.20780915,2646.5,2646.0,0.00566915]
[1740425697165,3.20780915,2646.5,2646.1,0.75572]
[1740425697166,0.75571,2646.2,2646.1,0.75572]
[1740425697867,3.20780915,2646.5,2646.1,0.75572]
[1740425698071,0.75573,2646.1,2646.0,0.00566915]
[1740425699072,3.96352,2646.2,2646.0,0.00566915]
[1740425699269,3.2078,2646.2,2646.0,0.00566915]
[1740425699468,3.96352,2646.2,2646.1,0.75573]
[1740425700065,9.15e-06,2646.5,2646.4,0.75565]
[1740425700369,3.20780915,2646.5,2646.4,0.75565]
[1740425700874,4.14719549,2646.5,2646.4,0.75565]
[1740425701069,0.93939549,2646.5,2646.4,0.75565]
[1740425701372,3.2078,2647.1,2647.0,0.75548]
[1740425701567,0.7555,2647.0,2646.9,0.75549]
[1740425701772,0.75551,2646.9,2646.8,0.75553]
[1740425702274,0.75551,2646.9,2646.0,0.76141915]
[1740425702275,1.88893,2646.7,2646.0,0.76141915]
[1740425702472,5.09687,2646.5,2646.0,0.00566915]
[1740425702667,3.2078,2646.6,2646.0,0.00566915]
[1740425702873,3.2078,2646.9,2646.0,3.21346915]
[1740425703073,0.00566915,2647.1,2647.0,0.75548]
[1740425703573,9.15e-06,2647.1,2647.0,0.75548]
[1740425703770,0.75545915,2647.1,2646.7,4.5333]
[1740425703970,9.15e-06,2647.1,2646.7,1.1233]
[1740425704468,3.2078,2646.8,2646.2,0.75571]
[1740425704669,5.47425,2646.8,2646.0,3.42166915]
[1740425704973,9.15e-06,2647.1,2647.0,0.75548]
[1740425705164,9.15e-06,2647.1,2646.8,0.5405]
[1740425705370,0.75546915,2647.1,2647.0,0.75548]
[1740425705569,0.75549,2647.0,2646.9,0.75549]
[1740425705773,0.75546915,2647.1,2646.8,0.5405]
[1740425705970,9.15e-06,2647.1,2647.0,0.75548]
[1740425706171,3.20780915,2647.1,2646.5,1.154]
[1740425706371,3.20780915,2647.1,2646.3,3.2078]
[1740425706670,3.2078,2646.8,2646.7,0.75556]
[1740425706974,3.2078,2646.8,2646.1,6.22214]
[1740425707176,3.2078,2646.8,2646.7,0.75556]
[1740425707376,3.2078,2646.8,2646.2,1.88927]
[1740425707776,3.2078,2646.8,2646.7,0.75556]
[1740425707977,9.15e-06,2647.1,2647.0,0.75548]
[1740425708178,9.15e-06,2647.1,2647.0,3.96328]
[1740425708670,9.15e-06,2647.1,2647.0,0.75548]
[1740425708870,9.15e-06,2647.1,2647.0,3.96328]
[1740425709476,9.15e-06,2647.1,2647.0,9.96328]
[1740425709780,3.419,2648.8,2647.6,3.77641]
[1740425709977,0.75512,2648.3,2648.1,0.75515]
[1740425710181,0.75525,2647.8,2647.7,0.586]
[1740425710387,6.9289,2648.2,2647.7,0.586]
[1740425710570,0.75525,2647.8,2647.7,0.586]
[1740425710882,3.2078,2647.9,2647.8,0.75525]
[1740425711081,3.2078,2647.9,2647.5,0.00566915]
[1740425711280,0.00566915,2648.0,2647.9,0.75522]
[1740425711575,0.00566915,2648.0,2647.9,4.17322]
[1740425711778,9.15e-06,2648.0,2647.9,4.72472]
[1740425711969,9.15e-06,2648.0,2647.9,11.27612]
[1740425712370,9.15e-06,2648.0,2647.9,5.27512]
[1740425712779,9.15e-06,2648.0,2647.9,1.85812]
[1740425712977,9.15e-06,2648.0,2647.9,5.27312]
[1740425713680,9.15e-06,2648.0,2647.9,46.07312]
[1740425713873,9.15e-06,2648.0,2647.9,5.27312]
[1740425714082,9.15e-06,2648.0,2647.9,11.27312]
[1740425714280,9.15e-06,2648.0,2647.9,52.07312]
[1740425714475,9.15e-06,2648.0,2647.9,48.65812]
[1740425714682,9.15e-06,2648.0,2647.9,11.27212]
[1740425715174,9.15e-06,2648.0,2647.9,52.07212]
[1740425715380,0.92204011,2649.5,2649.4,0.75479]
[1740425715882,3.2078,2650.4,2649.4,0.75479]
[1740425715883,3.2078,2650.4,2650.1,0.75459]
[1740425716086,3.2078,2650.4,2649.6,1.88681]
[1740425716087,3.2078,2650.4,2649.6,3.415]
[1740425716387,16.65329338,2650.2,2650.0,0.7546]
[1740425716684,0.00566915,2650.2,2650.1,0.75459]
[1740425716887,0.00566915,2650.2,2650.1,3.96239]
[1740425717085,0.00566915,2650.2,2649.6,3.42066915]
[1740425717287,0.76024915,2650.2,2649.9,0.75464]
[1740425717484,0.76024915,2650.2,2650.1,0.75459]
[1740425717485,0.00566915,2650.2,2650.1,0.75459]
[1740425717882,0.00566915,2650.2,2649.8,3.407]
[1740425718083,0.00566915,2650.2,2650.1,0.75459]
[1740425718582,0.76023915,2650.2,2650.1,0.75459]
[1740425718786,0.00566915,2650.2,2649.8,3.407]
[1740425718983,0.76024915,2650.2,2650.0,0.75462]
[1740425719180,0.00566915,2650.2,2649.7,3.2078]
[1740425719483,0.00566915,2650.2,2648.8,0.5744]
[1740425719484,3.2078,2649.9,2648.8,0.5744]
[1740425719684,1.88727,2649.0,2648.1,3.2078]
[1740425719885,1.88752,2648.7,2648.1,3.2078]
[1740425720083,3.2078,2648.8,2648.1,3.2078]
[1740425720278,0.75503,2648.6,2648.4,0.75507]
[1740425720483,0.75509,2648.4,2648.1,6.6288]
[1740425720687,0.00566915,2648.8,2648.2,0.00566915]
[1740425720890,0.75512,2648.3,2648.2,0.00566915]
[1740425721195,0.00566915,2648.8,2648.2,0.00566915]
[1740425721196,0.00566915,2648.8,2648.5,0.75505]
[1740425721389,0.00566915,2648.8,2648.7,0.75499]
[1740425721782,0.00566915,2648.8,2648.7,3.432]
[1740425721983,0.76062915,2648.8,2648.6,1.3266]
[1740425722480,0.75499,2648.7,2648.6,0.5716]
[1740425722685,0.75505,2648.5,2648.4,3.431]
[1740425723184,0.00566915,2648.8,2648.2,3.21346915]
[1740425724186,0.00566915,2648.8,2648.7,0.75499]
[1740425725590,0.00566915,2648.8,2648.5,6.6418]
[1740425725792,0.00566915,2648.8,2648.2,3.21346915]
[1740425726088,0.00566915,2648.8,2648.7,0.75499]
[1740425726493,0.76062915,2648.8,2648.7,0.75499]
[1740425726988,0.00566915,2648.8,2648.7,0.75499]
[1740425727195,3.2078,2649.7,2648.7,6.6478]
[1740425727391,0.75478,2649.5,2649.2,3.2078]
[1740425727693,0.75478,2649.5,2649.3,0.7548]
[1740425727990,0.75478,2649.5,2649.4,0.75479]
[1740425728197,0.75481,2649.4,2649.3,0.75481]
[1740425729395,0.75478,2649.5,2649.3,0.75481]
[1740425729593,0.00566915,2649.7,2649.2,3.2078]
[1740425729796,0.00566915,2649.7,2649.6,0.75474]
[1740425730802,0.00566915,2649.7,2649.5,0.75474]
[1740425731093,0.00566915,2649.7,2649.1,3.7788]
[1740425731797,0.00566915,2649.7,2649.1,5.66596]
[1740425731997,0.75476,2649.6,2649.1,5.66596]
[1740425732198,0.75477,2649.5,2649.4,0.75477]
[1740425732396,0.00566915,2649.7,2649.6,0.75474]
[1740425732592,0.00566915,2649.7,2649.6,3.96254]
[1740425733293,9.15e-06,2649.7,2649.6,3.96254]
[1740425733798,9.15e-06,2649.7,2649.6,7.39054]
[1740425735393,9.15e-06,2649.7,2649.6,13.39054]
[1740425735603,9.15e-06,2649.7,2649.6,7.39054]
[1740425736703,9.15e-06,2649.7,2649.3,3.2078]
[1740425736896,0.75482,2649.4,2649.1,0.571]
[1740425737102,0.75482,2649.4,2649.3,0.75481]
[1740425737307,9.15e-06,2649.7,2649.1,4.001]
[1740425737308,9.15e-06,2649.7,2649.1,3.43]
[1740425737499,1.88694,2649.5,2649.0,3.2078]
[1740425737808,0.75487,2649.2,2649.1,0.75487]
[1740425738108,0.75484,2649.3,2649.2,0.75484]
[1740425738404,1.88679915,2649.7,2649.0,3.2078]
[1740425738610,0.75487,2649.2,2649.1,0.75486]
[1740425738910,0.75488,2649.1,2649.0,3.96269]
[1740425739210,0.75488,2649.1,2649.0,3.2078]
[1740425739410,0.75493,2648.9,2648.8,1.34716]
[1740425740111,3.421,2649.4,2648.8,0.5922]
[1740425740310,2.79273282,2649.3,2648.8,0.5922]
[1740425740607,0.75493,2648.9,2648.8,1.34714]
[1740425740813,0.75493,2648.9,2648.8,0.5922]
[1740425741010,0.75493,2648.9,2648.8,1.34716]
[1740425741213,0.75489,2649.1,2649.0,0.75489]
[1740425741409,0.90564282,2649.3,2648.8,0.5922]
[1740425741607,0.75493,2648.9,2648.8,1.34714]
[1740425741815,3.2078,2649.2,2648.4,3.7912]
[1740425742010,1.88727,2649.0,2648.4,3.7912]
[1740425742208,0.75503,2648.6,2648.5,0.75503]
[1740425742715,0.75508,2648.4,2648.3,0.5508]
[1740425743011,5.09518,2648.9,2648.3,0.5508]
[1740425743407,0.75508,2648.4,2648.3,1.3059]
[1740425744020,2.79370072,2648.8,2648.3,0.5508]
[1740425744202,0.90628072,2648.8,2648.3,0.5508]
[1740425744408,0.75505,2648.5,2648.4,0.75506]
[1740425744603,0.90628072,2648.8,2648.7,0.75499]
[1740425744805,1.66124072,2648.8,2648.7,0.75499]
[1740425745110,1.66124072,2648.8,2648.7,3.96279]
[1740425745307,1.88723,2649.1,2648.7,3.2078]
[1740425745513,0.75496,2648.8,2648.7,3.96278]
[1740425745816,0.75502,2648.6,2648.5,1.33905]
[1740425746513,0.75501,2648.7,2648.6,0.755]
[1740425746818,0.75501,2648.7,2648.6,3.9628]
[1740425747512,1.88736,2648.9,2648.2,3.40666915]
[1740425747712,0.75502,2648.7,2648.6,0.75501]
[1740425748015,3.2078,2649.0,2648.6,0.75501]
[1740425748016,0.90600425,2649.1,2649.0,0.75491]
[1740425748216,0.90600425,2649.4,2648.9,3.2078]
[1740425748420,0.75484,2649.3,2649.2,0.75483]
[1740425748609,0.75487,2649.2,2649.1,0.75486]
[1740425748809,0.75487,2649.2,2649.1,1.30276]
[1740425749011,0.75487,2649.2,2649.1,0.5479]
[1740425749319,0.90600425,2649.5,2649.1,0.5479]
[1740425750017,4.11380425,2649.6,2649.1,0.5479]
[1740425750913,3.2078,2649.6,2649.1,0.5479]
[1740425751210,9.15e-06,2649.7,2649.3,3.2078]
[1740425753118,0.75474,2649.6,2649.3,3.2078]
[1740425753318,0.75477,2649.5,2649.4,0.75477]
[1740425753520,0.75479,2649.4,2649.3,3.9626]
[1740425753719,0.75479,2649.4,2649.3,3.2078]
[1740425753913,0.75479,2649.4,2649.3,3.96262]
[1740425754416,9.15e-06,2649.7,2649.1,0.5479]
[1740425754617,0.75485,2649.2,2649.1,1.30278]
[1740425755125,9.15e-06,2649.7,2649.1,0.5479]
[1740425755321,0.75482,2649.3,2649.2,3.96263]
[1740425755619,0.75481,2649.4,2649.3,0.75481]
[1740425755818,2.79490698,2649.7,2649.2,3.2078]
[1740425756013,0.75477,2649.5,2649.4,0.75477]
[1740425756320,1.88684915,2649.7,2649.2,3.2078]
[1740425756522,0.75481,2649.4,2649.3,0.7548]
[1740425756722,0.75482,2649.3,2649.2,3.96264]
[1740425757016,1.88685,2649.6,2649.1,0.5479]
[1740425757222,0.75485,2649.2,2649.1,1.30278]
[1740425758022,0.75485,2649.2,2649.1,0.5479]
[1740425758421,0.75499,2648.7,2648.6,3.2078]
[1740425761121,2.79514767,2648.9,2648.8,0.75496]
[1740425761122,0.90779767,2648.9,2648.8,0.75496]
[1740425761523,3.2078,2649.6,2649.5,0.75476]
[1740425761727,9.15e-06,2649.7,2649.2,3.2078]
[1740425761929,9.15e-06,2649.7,2649.4,0.75479]
[1740425762123,0.75478,2649.5,2649.4,3.2078]
[1740425762526,0.75478,2649.5,2649.4,3.96259]
[1740425763536,9.15e-06,2649.7,2649.6,0.75474]
[1740425763933,9.15e-06,2649.7,2649.6,6.75474]
[1740425764424,9.15e-06,2649.7,2649.6,0.75474]
[1740425764630,9.15e-06,2649.7,2649.6,4.12174]
[1740425765136,9.15e-06,2649.7,2649.6,10.70304]
[1740425765733,9.15e-06,2649.7,2649.6,3.9483]
[1740425765938,0.75471915,2649.7,2649.6,3.9483]
[1740425766331,0.75474,2649.6,2649.1,3.2078]
[1740425766532,0.75483,2649.3,2649.1,3.96266]
[1740425766733,9.15e-06,2649.7,2649.1,3.2078]
[1740425767031,0.75488,2649.1,2649.0,0.5426]
[1740425767738,0.75487,2649.2,2649.0,1.29749]
[1740425768036,0.75487,2649.2,2649.1,3.96268]
[1740425768236,0.75487,2649.2,2649.1,3.2078]
[1740425768436,0.75488,2649.1,2649.0,0.5426]
[1740425768935,6.16480915,2649.7,2648.6,1.1207]
[1740425769136,0.75499,2648.7,2648.6,1.1207]
[1740425769336,0.75502,2648.6,2648.5,3.2078]
[1740425769730,0.75511,2648.3,2648.0,5.05848]
[1740425769933,1.88742,2648.8,2648.0,4.3033]
[1740425770231,0.75511,2648.3,2648.1,0.75515]
[1740425770434,0.75511,2648.3,2648.2,0.76079915]
[1740425770634,3.37,2648.9,2648.2,0.00566915]
[1740425770835,0.75505,2648.5,2648.4,3.2078]
[1740425771034,0.5432,2649.0,2648.5,0.75505]
[1740425771241,0.75511,2648.3,2648.2,0.00566915]
[1740425774137,0.75511,2648.3,2647.4,7.1429]
[1740425774138,0.75533,2647.5,2647.4,4.53125]
[1740425774643,0.75533,2647.5,2647.4,3.7759]
[1740425774834,0.75533,2647.5,2647.4,3.2078]
[1740425775041,0.75537,2647.4,2647.3,0.75537]
[1740425775344,0.00566915,2647.7,2647.3,3.2078]
[1740425775545,0.00566915,2647.7,2647.3,3.96317]
[1740425775847,0.75536,2647.4,2647.3,3.2078]
[1740425776142,0.75536,2647.4,2647.3,3.96318]
[1740425776339,0.00566915,2647.7,2647.3,3.2078]
[1740425776544,0.75536,2647.4,2647.3,3.2078]
[1740425776938,0.75538,2647.4,2647.2,3.21346915]
[1740425777138,0.75539,2647.3,2647.2,3.96887915]
[1740425777340,0.75539,2647.3,2647.2,3.21346915]
[1740425777540,0.75539,2647.3,2647.2,0.00566915]
[1740425781343,6.5608,2647.5,2647.2,0.00566915]
[1740425781646,3.353,2647.5,2647.2,3.21346915]
[1740425781845,0.00566915,2647.7,2647.2,3.21346915]
[1740425782045,0.75539,2647.3,2647.2,0.76108915]
[1740425782245,0.75539,2647.3,2647.2,0.76106915]
[1740425782448,0.75539,2647.3,2647.2,0.00566915]
[1740425782750,0.00566915,2647.7,2647.2,0.00566915]
[1740425782948,0.00566915,2647.7,2647.6,0.75531]
[1740425783445,0.75531,2647.6,2647.5,0.5908]
[1740425783649,0.75531,2647.6,2647.5,41.3908]
[1740425784147,1.89387915,2647.7,2647.3,3.2078]
[1740425784449,0.75539,2647.3,2647.2,0.59626915]
[1740425784847,0.75539,2647.3,2647.2,0.00566915]
[1740425786245,1.13299,2647.3,2647.2,0.00566915]
[1740425786451,0.75539,2647.3,2647.2,0.00566915]
[1740425788457,0.75533,2647.6,2647.5,0.75533]
[1740425788649,5.22789915,2647.7,2647.2,3.21346915]
[1740425788951,3.33966915,2647.7,2647.2,3.21346915]
[1740425789253,0.00566915,2647.7,2647.6,0.75531]
[1740425790158,0.75533,2647.6,2647.5,0.75532]
[1740425790360,0.76095915,2647.7,2647.6,0.75531]
[1740425790551,0.00566915,2647.7,2647.6,0.75531]
[1740425790746,0.75533,2647.6,2647.5,0.75532]
[1740425790949,0.75533,2647.5,2647.4,1.34044]
[1740425791154,0.75532,2647.6,2647.5,0.75532]
[1740425791356,0.00566915,2647.7,2647.4,0.5851]
[1740425791551,0.75533,2647.5,2647.4,1.34044]
[1740425791860,0.75536,2647.4,2647.3,0.5411]
[1740425792659,1.88828,2647.6,2647.2,0.00566915]
[1740425792956,0.75539,2647.3,2647.2,0.00566915]
[1740425793953,0.00566915,2647.7,2647.2,0.00566915]
[1740425794154,0.00566915,2647.7,2647.5,3.2078]
[1740425794953,0.00566915,2647.7,2647.6,1.6438]
[1740425795659,0.00566915,2647.7,2647.6,1.1075]
[1740425796556,0.00566915,2647.7,2647.2,3.21346915]
[1740425797262,0.00566915,2647.7,2647.2,0.00566915]
[1740425797452,0.00566915,2647.7,2647.4,0.75535]
[1740425797759,0.00566915,2647.7,2647.2,0.00566915]
[1740425797951,0.00566915,2647.7,2647.6,3.2078]
[1740425798147,9.15e-06,2647.7,2647.6,3.96311]
[1740425798354,9.15e-06,2647.7,2647.6,13.28911]
[1740425798559,9.15e-06,2647.7,2647.6,7.28911]
[1740425798755,9.15e-06,2647.7,2647.6,48.08911]
[1740425799155,9.15e-06,2647.7,2647.6,54.08911]
[1740425800259,9.15e-06,2647.7,2647.6,48.08911]
[1740425800556,9.15e-06,2647.7,2647.6,44.76311]
[1740425800756,9.15e-06,2647.7,2647.6,7.28811]
[1740425802562,9.15e-06,2647.7,2647.6,3.2078]
[1740425802765,0.75528915,2647.7,2647.6,3.2078]
[1740425803267,9.15e-06,2647.7,2647.5,1.1516]
[1740425803567,9.15e-06,2647.7,2647.2,0.00566915]
[1740425805670,9.15e-06,2647.7,2647.4,3.2078]
[1740425808971,9.15e-06,2647.7,2647.2,1.09646915]
[1740425808972,3.2078,2647.5,2647.2,0.00566915]
[1740425813080,6.4998,2647.5,2647.2,0.00566915]
[1740425813475,3.2078,2647.5,2647.2,0.00566915]
[1740425813673,6.4968,2647.5,2647.2,0.00566915]
[1740425814875,6.4968,2647.5,2646.6,3.2078]
[1740425816080,6.4968,2647.5,2646.8,0.00566915]
[1740425818478,3.2078,2647.2,2646.1,3.2078]
[1740425818680,3.2078,2646.9,2646.1,3.2078]
[1740425818880,3.2078,2646.6,2646.1,3.2078]
[1740425819683,3.2078,2646.6,2646.1,3.21346915]
[1740425819980,3.2078,2646.6,2646.1,0.00566915]
[1740425821683,3.50734472,2646.6,2646.1,0.00566915]
[1740425822891,3.275,2646.5,2646.1,0.00566915]
[1740425823288,0.5611,2646.4,2646.1,0.00566915]
[1740425823788,3.274,2646.4,2646.1,0.00566915]
[1740425824985,3.8341,2646.9,2646.3,3.2078]
[1740425825387,15.89870338,2646.8,2646.3,3.2078]
[1740425826096,15.89870338,2646.8,2646.2,1.6629]
[1740425826290,15.89870338,2646.8,2646.2,4.8707]
[1740425827095,15.89870338,2646.8,2646.2,4.307]
[1740425827292,3.2078,2646.6,2646.1,0.00566915]
[1740425828088,3.27,2646.5,2646.1,0.00566915]
[1740425828295,3.2078,2646.3,2646.1,0.00566915]
[1740425833697,15.89870338,2646.8,2646.2,3.2078]
[1740425833898,15.89870338,2646.8,2646.5,3.2078]
[1740425834195,15.89870338,2646.8,2646.6,4.3953]
[1740425835493,15.89870338,2646.8,2646.6,1.1233]
[1740425835998,15.89870338,2646.8,2646.6,0.5862]
[1740425836701,6.4788,2647.0,2646.3,0.5621]
[1740425836895,6.4788,2647.0,2646.3,1.1532]
[1740425837995,0.5462,2646.9,2646.3,1.1532]
[1740425838495,0.5462,2646.9,2646.3,0.5911]
[1740425838797,0.5462,2646.9,2646.2,0.5837]
[1740425839590,3.2078,2646.7,2646.2,0.5837]
[1740425839801,3.2078,2646.4,2645.6,0.5665]
[1740425840002,3.2078,2646.1,2645.6,0.5665]
[1740425841000,3.2078,2646.1,2645.6,0.57216915]
[1740425841001,3.21346915,2646.1,2645.6,0.57216915]
[1740425842696,3.21346915,2646.1,2645.6,0.00566915]
[1740425842892,3.2078,2645.8,2645.6,0.00566915]
[1740425843092,6.4648,2645.8,2645.6,0.00566915]
[1740425844508,6.4648,2645.8,2644.7,3.2078]
[1740425844701,3.2078,2645.5,2645.3,0.13972465]
[1740425844903,3.253,2645.4,2644.7,3.2078]
[1740425845700,4.12972885,2645.4,2644.7,3.2078]
[1740425845900,4.12972885,2645.4,2644.8,0.00566915]
[1740425846494,3.2078,2645.2,2644.8,0.00566915]
[1740425848606,3.55314806,2645.5,2644.8,0.00566915]
[1740425848800,3.255,2645.4,2645.0,3.2078]
[1740425849511,3.255,2645.4,2644.8,0.00566915]
[1740425850808,3.2078,2645.2,2644.8,0.00566915]
[1740425851106,0.5814,2645.1,2644.8,0.00566915]
[1740425851307,3.251,2645.0,2644.6,3.2078]
[1740425851502,3.2078,2644.8,2643.8,3.2078]
[1740425851708,3.2078,2644.8,2643.9,0.5625]
[1740425851906,6.4578,2644.8,2643.9,0.5625]
[1740425852102,6.98889,2644.5,2643.9,0.5625]
[1740425852304,0.75633,2644.0,2643.9,0.5625]
[1740425852604,1.89063,2644.3,2643.5,1.1332]
[1740425852605,0.75645,2643.6,2643.5,1.1332]
[1740425852806,0.75645,2643.6,2643.5,1.6957]
[1740425853104,6.4678,2644.3,2643.6,1.89113]
[1740425853307,0.75642,2643.7,2643.6,3.2078]
[1740425853508,0.75642,2643.7,2643.6,0.75645]
[1740425853808,0.75644,2643.7,2643.6,0.75642]
[1740425854010,0.75641,2643.8,2643.7,0.7564]
[1740425854214,3.2078,2644.0,2643.5,1.6957]
[1740425854413,0.75645,2643.6,2643.5,1.6957]
[1740425855104,3.2078,2643.7,2643.0,3.9644]
[1740425855311,0.75659,2643.1,2643.0,3.2078]
[1740425855511,1.89113,2643.6,2643.1,0.75658]
[1740425855705,3.2078,2643.7,2643.0,3.2078]
[1740425855904,3.2078,2643.7,2643.3,0.75651]
[1740425856202,3.2078,2643.7,2643.0,3.2078]
[1740425856709,3.50362476,2643.7,2643.3,0.75652]
[1740425857012,0.201,2644.2,2643.3,0.75652]
[1740425857013,3.2078,2644.0,2643.5,1.89116]
[1740425857210,0.5923,2644.3,2643.6,3.2078]
[1740425857408,0.5923,2644.3,2644.2,0.75628]
[1740425857599,0.5923,2644.3,2643.6,3.2078]
[1740425857600,1.34858,2644.3,2644.0,0.75632]
[1740425857805,0.5923,2644.3,2644.1,0.75629]
[1740425858006,0.00566915,2644.5,2644.4,0.75622]
[1740425858609,0.00566915,2644.5,2644.3,0.5349]
[1740425858809,0.00566915,2644.5,2644.4,0.75622]
[1740425859112,0.75622,2644.4,2644.3,0.5349]
[1740425860107,0.00566915,2644.5,2643.9,6.5088]
[1740425860307,0.75633,2644.0,2643.9,3.301]
[1740425860505,0.75642,2643.7,2643.6,3.2078]
[1740425860700,1.8907,2644.2,2643.6,3.2078]
[1740425860910,0.75642,2643.7,2643.6,3.96424]
[1740425861110,3.2078,2644.3,2643.6,3.2078]
[1740425861511,3.2078,2644.3,2643.5,4.9263]
[1740425861512,0.75626,2644.3,2644.1,0.75629]
[1740425861904,0.75626,2644.3,2644.2,1.0894]
[1740425862308,0.00566915,2644.5,2644.2,1.0894]
[1740425862613,0.75622,2644.4,2644.2,1.84567]
[1740425862809,0.75625,2644.3,2644.2,1.0894]
[1740425863410,0.75622,2644.4,2644.2,1.0894]
[1740425863612,0.76186915,2644.5,2644.2,1.0894]
[1740425863909,0.76186915,2644.5,2644.4,0.75622]
[1740425864115,0.75625,2644.3,2644.2,1.84567]
[1740425864415,0.75625,2644.3,2644.2,1.84568]
[1740425865608,0.75625,2644.3,2644.2,1.0894]
[1740425866816,0.75628,2644.2,2644.1,0.5779]
[1740425867115,0.75645,2643.7,2643.6,0.75642]
[1740425867309,0.75645,2643.7,2643.6,1.34812]
[1740425867911,0.75641,2643.8,2643.7,0.7564]
[1740425868205,5.09847,2644.3,2643.6,0.5917]
[1740425868405,0.75637,2644.0,2643.9,0.75634]
[1740425868808,0.00566915,2644.5,2644.4,0.75622]
[1740425869008,0.00566915,2644.5,2644.4,3.96402]
[1740425870220,0.00566915,2644.5,2644.4,0.75622]
[1740425870422,0.76185915,2644.5,2644.4,0.75622]
[1740425870916,0.00566915,2644.5,2644.4,0.75622]
[1740425871417,0.00566915,2644.5,2644.3,4.4502]
[1740425871614,0.75622,2644.4,2644.3,1.1672]
[1740425872713,0.00566915,2644.5,2644.3,1.1672]
[1740425873015,0.00566915,2644.5,2644.4,0.75622]
[1740425874117,0.00566915,2644.5,2644.3,1.1672]
[1740425874711,3.2078,2644.4,2643.6,6.4788]
[1740425874907,3.2078,2644.4,2643.7,0.5648]
[1740425875112,3.2078,2644.4,2643.8,0.5675]
[1740425875311,3.2078,2644.4,2643.9,0.5686]
[1740425877318,3.7469,2644.4,2643.9,0.5686]
[1740425877716,3.2078,2644.1,2643.3,3.2078]
[1740425877920,3.2078,2643.8,2642.7,4.347]
[1740425878119,5.72129,2643.7,2642.7,4.917]
[1740425878316,0.75666,2642.9,2642.8,0.75667]
[1740425878522,5.16134,2643.3,2642.8,0.75666]
[1740425878731,0.76227915,2643.1,2642.9,0.75662]
[1740425879016,0.75664,2643.0,2642.7,4.917]
[1740425879218,0.76227915,2643.1,2642.7,4.917]
[1740425879516,0.00566915,2643.1,2643.0,0.75662]
[1740425879723,0.00566915,2643.1,2642.7,4.917]
[1740425879919,0.75667,2642.9,2642.8,0.75668]
[1740425880121,3.21346915,2643.1,2642.7,1.7092]
[1740425880122,0.00566915,2643.1,2642.7,1.7092]
[1740425880421,0.75663,2643.0,2642.9,0.75665]
[1740425880624,0.00566915,2643.1,2642.7,1.7092]
[1740425880813,0.75663,2643.0,2642.9,0.75664]
[1740425881218,0.75665,2642.9,2642.8,0.75668]
[1740425881416,0.00566915,2643.1,2643.0,0.75662]
[1740425882423,0.00566915,2643.1,2642.9,0.75664]
[1740425882626,0.00566915,2643.1,2642.7,4.917]
[1740425883028,0.00566915,2643.1,2643.0,0.75662]
[1740425883222,0.00566915,2643.1,2643.0,3.96442]
[1740425883826,0.00566915,2643.1,2643.0,9.96442]
[1740425884129,0.00566915,2643.1,2643.0,3.96442]
[1740425884426,0.00566915,2643.1,2643.0,44.76442]
[1740425884931,0.00566915,2643.1,2643.0,48.01942]
[1740425885324,3.2078,2644.3,2643.1,1.89149]
[1740425885530,3.2078,2644.3,2643.6,3.2078]
[1740425885725,0.75629,2644.2,2644.1,0.75631]
[1740425886025,0.75628,2644.2,2644.0,0.75633]
[1740425886236,3.2078,2644.3,2643.7,1.1425]